bitfinex/quotes_ETHUSD_20220218
["timestamp","ask_amount","ask_price","bid_price","bid_amount"]
[1645162465059,0.0009429,2898.0,2897.7,0.00276467]
[1645162466060,0.0009429,2898.0,2897.3,2.13222059]
[1645162466264,0.0009429,2898.0,2897.7,0.00276462]
[1645162466863,0.0009429,2898.0,2897.7,1.47338765]
[1645162467106,0.0009429,2898.0,2897.8,1.47062303]
[1645162467310,0.0009429,2898.0,2897.9,1.47062303]
[1645162467512,0.0009429,2898.0,2897.7,0.00276462]
[1645162468411,0.0009429,2898.0,2897.3,2.13222059]
[1645162468809,0.0009429,2898.0,2897.7,0.00276023]
[1645162469409,0.0009429,2898.0,2897.7,1.47338326]
[1645162469708,0.0009429,2898.0,2897.4,0.66159756]
[1645162469709,0.0009429,2898.0,2897.8,1.47062303]
[1645162469910,0.0009429,2898.0,2897.9,1.47062303]
[1645162470108,0.0009429,2898.0,2897.7,0.00276023]
[1645162470958,0.0009429,2898.0,2897.4,0.66159756]
[1645162471154,0.0009429,2898.0,2897.7,0.00276023]
[1645162472162,0.0009429,2898.0,2897.4,0.66159756]
[1645162472361,0.0009429,2898.0,2897.7,0.00276045]
[1645162473263,0.0009429,2898.0,2897.6,2.13222059]
[1645162473466,0.0009429,2898.0,2897.7,1.4733837]
[1645162473663,0.0009429,2898.0,2897.8,1.47062303]
[1645162473862,0.0009429,2898.0,2897.9,1.47062303]
[1645162474261,0.0009429,2898.0,2897.7,0.00276067]
[1645162474500,0.0009429,2898.0,2897.5,1.47062303]
[1645162474701,0.0009429,2898.0,2897.7,0.00276072]
[1645162475599,0.0009429,2898.0,2897.6,1.47062303]
[1645162475800,0.0009429,2898.0,2897.7,1.47062303]
[1645162476005,0.0009429,2898.0,2897.7,0.00276065]
[1645162476902,0.0009429,2898.0,2897.6,1.47062303]
[1645162477106,0.0009429,2898.0,2897.7,1.47338366]
[1645162477406,0.0009429,2898.0,2897.8,1.47062303]
[1645162477605,0.0009429,2898.0,2897.9,1.47062303]
[1645162478005,0.0009429,2898.0,2897.6,1.47062303]
[1645162478251,0.0009429,2898.0,2897.7,1.47062303]
[1645162478449,0.0009429,2898.0,2897.8,1.47062303]
[1645162478655,0.00276016,2898.2,2898.0,0.00013311]
[1645162479250,0.276314,2898.3,2898.0,0.00013311]
[1645162479452,0.0027602,2898.2,2898.0,0.00013311]
[1645162480450,0.276314,2898.3,2898.0,0.00013311]
[1645162480654,0.00276021,2898.2,2898.0,0.00013311]
[1645162481652,0.276314,2898.3,2898.0,0.00013311]
[1645162481852,0.00276021,2898.2,2898.0,0.00013311]
[1645162482610,0.00276021,2898.2,2898.0,1.47075614]
[1645162482811,1.276314,2898.3,2898.1,1.47062303]
[1645162483007,1.276314,2898.3,2898.2,1.47062303]
[1645162483207,0.276314,2898.3,2898.2,1.47062303]
[1645162483407,1.276314,2898.3,2898.2,1.47062303]
[1645162483608,1.276314,2898.3,2898.0,0.00013311]
[1645162483812,0.276314,2898.3,2898.0,0.00013311]
[1645162484009,1.276314,2898.3,2898.0,0.00013311]
[1645162484408,0.27907417,2898.3,2898.0,0.00013311]
[1645162484610,1.27907417,2898.3,2898.0,0.00013311]
[1645162484810,0.27907417,2898.3,2898.0,0.00013311]
[1645162485211,0.276314,2898.3,2898.0,0.00013311]
[1645162485613,0.27907417,2898.3,2898.0,0.00013311]
[1645162486057,0.27907417,2898.3,2898.0,1.47075614]
[1645162486258,0.27907417,2898.3,2898.1,1.47062303]
[1645162486463,0.276314,2898.3,2898.1,1.47062303]
[1645162486663,0.27907417,2898.3,2898.2,1.47062303]
[1645162487766,0.276314,2898.3,2898.0,0.00013311]
[1645162488166,0.138157,2898.3,2898.0,0.00013311]
[1645162489169,0.14091717,2898.3,2898.0,0.00013311]
[1645162489368,25.04629333,2898.3,2898.0,0.00013311]
[1645162489605,3.65537616,2898.2,2898.0,0.00013311]
[1645162489804,0.15537616,2898.2,2898.0,0.00013311]
[1645162490208,1.83034679,2898.3,2898.0,0.00013311]
[1645162490408,0.0027602,2898.2,2898.0,0.00013311]
[1645162491205,1.138157,2898.3,2898.0,0.00013311]
[1645162491611,0.0027602,2898.2,2898.0,0.00013311]
[1645162492411,1.0,2898.3,2898.0,0.00013311]
[1645162492810,0.0027602,2898.2,2898.0,0.00013311]
[1645162493556,23.7527602,2898.2,2898.0,0.00013311]
[1645162493755,20.90437616,2898.1,2898.0,0.00013311]
[1645162493954,21.90437616,2898.1,2898.0,0.00013311]
[1645162494157,0.65437616,2898.1,2898.0,0.00013311]
[1645162494354,1.499,2898.1,2898.0,0.00013311]
[1645162494554,0.499,2898.1,2898.0,0.00013311]
[1645162494754,1.499,2898.1,2898.0,0.00013311]
[1645162494953,0.499,2898.1,2898.0,0.00013311]
[1645162495157,1.499,2898.1,2898.0,0.00013311]
[1645162495754,0.799,2898.1,2898.0,0.00013311]
[1645162495955,5.299,2898.1,2898.0,0.00013311]
[1645162496258,25.499,2898.1,2898.0,0.00013311]
[1645162496455,5.40437616,2898.1,2898.0,0.00013311]
[1645162497121,6.79656595,2898.1,2898.0,0.00013311]
[1645162498311,3.29656595,2898.1,2898.0,0.00013311]
[1645162498512,3.14118979,2898.1,2898.0,0.00013311]
[1645162498713,6.64118979,2898.1,2898.0,0.00013311]
[1645162499420,6.59118979,2898.1,2898.0,0.00013311]
[1645162499616,5.199,2898.1,2898.0,0.00013311]
[1645162500117,5.35437616,2898.1,2898.0,0.00013311]
[1645162500756,25.40437616,2898.1,2898.0,0.00013311]
[1645162500961,26.79656595,2898.1,2898.0,0.00013311]
[1645162501760,6.54656595,2898.1,2898.0,0.00013311]
[1645162502362,6.39118979,2898.1,2898.0,0.00013311]
[1645162502763,6.69118979,2898.1,2898.0,0.00013311]
[1645162503369,5.299,2898.1,2898.0,0.00013311]
[1645162503567,5.45437616,2898.1,2898.0,0.00013311]
[1645162503969,25.70437616,2898.1,2898.0,0.00013311]
[1645162504368,5.45437616,2898.1,2898.0,0.00013311]
[1645162504611,5.299,2898.1,2898.0,0.00013311]
[1645162505013,5.45437616,2898.1,2898.0,0.00013311]
[1645162505213,25.70437616,2898.1,2898.0,0.00013311]
[1645162506015,27.09656595,2898.1,2898.0,0.00013311]
[1645162507522,6.84656595,2898.1,2898.0,0.00013311]
[1645162508558,27.09656595,2898.1,2898.0,0.00013311]
[1645162509769,27.04656595,2898.1,2898.0,0.00013311]
[1645162512009,6.79656595,2898.1,2898.0,0.00013311]
[1645162512817,27.04656595,2898.1,2898.0,0.00013311]
[1645162513018,3.29656595,2898.1,2898.0,0.00013311]
[1645162513219,1.69218979,2898.1,2898.0,0.00013311]
[1645162513421,1.69218979,2898.1,2898.0,0.93483311]
[1645162513616,1.2419602,2898.2,2898.0,2.40549688]
[1645162513617,0.0027602,2898.2,2898.0,2.40549688]
[1645162513818,0.0027602,2898.2,2898.0,0.93483311]
[1645162514017,1.39218979,2898.3,2898.0,0.93483311]
[1645162514216,0.00132285,2898.2,2898.0,0.93483311]
[1645162514419,0.00132285,2898.2,2898.1,1.47043176]
[1645162515219,0.0049486,2898.4,2898.1,1.47043176]
[1645162515518,0.00132285,2898.3,2898.1,1.47043176]
[1645162515960,0.00132285,2898.3,2898.0,0.00013311]
[1645162516363,0.0049486,2898.4,2898.0,0.00013311]
[1645162516763,0.00132285,2898.3,2898.0,0.00013311]
[1645162517368,0.00132285,2898.3,2898.0,1.47055383]
[1645162517672,0.0049486,2898.4,2898.0,0.00013311]
[1645162517867,0.00296095,2898.3,2898.0,0.00013311]
[1645162518869,0.0049486,2898.4,2898.0,0.00013311]
[1645162519168,0.00300927,2898.3,2898.0,0.00013311]
[1645162520007,0.0049486,2898.4,2898.0,0.00013311]
[1645162520315,0.00300927,2898.3,2898.0,0.00013311]
[1645162521213,0.1430906,2898.4,2898.0,0.00013311]
[1645162521613,0.00138127,2898.3,2898.0,0.00013311]
[1645162522413,0.0049486,2898.4,2898.0,0.00013311]
[1645162522611,0.3049486,2898.4,2898.0,0.00013311]
[1645162522817,0.0029635,2898.3,2898.0,0.00013311]
[1645162523666,0.3049486,2898.4,2898.0,0.00013311]
[1645162523871,0.0029635,2898.3,2898.0,0.00013311]
[1645162524067,0.0029635,2898.3,2898.0,1.47063728]
[1645162524870,0.3049486,2898.6,2898.0,1.47063728]
[1645162525071,0.0029635,2898.3,2898.0,1.47063728]
[1645162526072,0.3049486,2898.6,2898.1,3.5]
[1645162526271,0.0030232,2898.3,2898.2,1.47050417]
[1645162527125,0.0030232,2898.3,2898.0,1.47063728]
[1645162527321,0.3049486,2898.6,2898.1,1.47050417]
[1645162527524,0.00302314,2898.4,2898.2,1.47050417]
[1645162527728,0.00302314,2898.4,2898.3,1.47050417]
[1645162527922,0.00302314,2898.4,2898.0,1.47063728]
[1645162528325,0.00302314,2898.4,2898.1,3.5]
[1645162528524,0.0049486,2898.7,2898.2,1.47050417]
[1645162528722,0.0129546,2898.8,2898.3,1.47050417]
[1645162528921,0.0129546,2898.8,2898.4,1.47050417]
[1645162529123,0.0129546,2898.8,2898.5,1.47050417]
[1645162529323,0.0129546,2898.8,2898.6,1.47050417]
[1645162529526,0.0129546,2898.8,2898.0,0.00013311]
[1645162529825,0.0129546,2898.8,2898.5,0.96699469]
[1645162530023,0.01586101,2898.8,2898.6,1.4701983]
[1645162530423,0.01586101,2898.8,2898.5,0.96699469]
[1645162530863,0.0129546,2898.8,2898.6,1.47016873]
[1645162531267,0.01586104,2898.8,2898.6,1.47016873]
[1645162531468,0.01586104,2898.8,2898.5,0.96699469]
[1645162531669,0.01586104,2898.8,2898.6,1.47015868]
[1645162532069,0.0129546,2898.8,2898.6,1.47015868]
[1645162532267,0.01586101,2898.8,2898.6,1.47015868]
[1645162533276,0.0129546,2898.8,2898.5,0.96699469]
[1645162533770,0.0129546,2898.8,2898.1,3.5]
[1645162533771,0.01571544,2898.8,2898.1,3.5]
[1645162533971,0.01571544,2898.8,2898.2,1.47018067]
[1645162534171,0.01571544,2898.8,2898.3,3.5]
[1645162534373,0.01571544,2898.8,2898.4,1.47018067]
[1645162534614,0.0129546,2898.8,2898.4,1.47018067]
[1645162534813,0.00276091,2898.7,2898.6,1.03807524]
[1645162535820,0.0129546,2898.8,2898.6,1.03807524]
[1645162536016,0.01571546,2898.8,2898.6,1.03807524]
[1645162536815,0.01571546,2898.8,2898.6,1.03663529]
[1645162537019,0.0129546,2898.8,2898.6,1.03663529]
[1645162537219,0.01573097,2898.8,2898.6,1.03663529]
[1645162539266,0.0129546,2898.8,2898.6,1.03663529]
[1645162539467,0.01573097,2898.8,2898.6,1.03663529]
[1645162540168,0.01573097,2898.8,2898.2,2.02853]
[1645162540368,0.01573097,2898.8,2898.3,1.47011569]
[1645162540569,0.0129546,2898.8,2898.3,1.47011569]
[1645162540769,0.00277408,2898.6,2898.3,1.47011569]
[1645162541074,0.0129546,2898.8,2898.6,0.00491901]
[1645162541269,0.0129546,2898.8,2898.7,0.87261115]
[1645162541469,0.0129546,2898.8,2898.7,2.34267409]
[1645162542516,0.0129546,2898.8,2898.7,0.87261115]
[1645162542716,0.0129546,2898.8,2898.6,0.00491901]
[1645162543520,0.499,2898.7,2898.6,0.00491901]
[1645162543721,0.6763486,2898.7,2898.6,0.00491901]
[1645162543916,21.76932158,2898.7,2898.6,0.00491901]
[1645162544118,23.15679774,2898.7,2898.6,0.00491901]
[1645162544314,3.90679774,2898.7,2898.6,0.00491901]
[1645162544515,3.75142158,2898.7,2898.6,0.00491901]
[1645162544715,3.25242158,2898.7,2898.6,0.00491901]
[1645162544915,2.4094486,2898.7,2898.6,0.00491901]
[1645162545315,2.9084486,2898.7,2898.6,0.00491901]
[1645162545619,1.9084486,2898.7,2898.6,0.00491901]
[1645162549711,3.59508099,2898.6,2898.0,0.00330018]
[1645162549911,0.0049486,2898.5,2898.0,0.00330018]
[1645162550111,0.0049486,2898.5,2898.0,0.00013311]
[1645162550513,0.0049486,2898.5,2898.0,0.0033]
[1645162551315,0.0049486,2898.5,2898.0,0.00013311]
[1645162552716,0.0049486,2898.5,2898.0,0.00329748]
[1645162553370,1.0451838,2898.5,2898.0,0.00329748]
[1645162553871,0.8679786,2898.5,2898.0,0.00013311]
[1645162554070,0.8679786,2898.5,2898.0,0.00329748]
[1645162554071,1.1679786,2898.5,2898.0,0.00329748]
[1645162554866,1.1679786,2898.5,2898.0,1.47053153]
[1645162555066,1.1679786,2898.5,2898.0,0.00013311]
[1645162555067,0.8679786,2898.5,2898.0,0.00013311]
[1645162555269,1.1679786,2898.5,2898.0,0.00329748]
[1645162555469,0.8679786,2898.5,2898.0,0.00329748]
[1645162555892,0.0049486,2898.5,2898.0,0.00329748]
[1645162556268,0.0049486,2898.5,2898.0,0.00013311]
[1645162556468,0.0049486,2898.5,2898.0,0.00329748]
[1645162557350,0.0049486,2898.5,2898.0,0.00013311]
[1645162557544,0.0049486,2898.5,2898.0,0.00329748]
[1645162557942,1.72604,2898.4,2898.0,0.00329748]
[1645162558142,0.86301,2898.2,2898.0,0.00329748]
[1645162558543,0.86301,2898.2,2898.0,0.00013311]
[1645162558842,0.86301,2898.2,2898.0,0.0032975]
[1645162559043,0.3,2898.3,2898.0,0.0032975]
[1645162559843,0.3,2898.3,2898.0,0.00013311]
[1645162560045,0.3,2898.3,2898.0,0.00329747]
[1645162560444,0.8678886,2898.5,2898.0,0.00329747]
[1645162560644,1.1678886,2898.5,2898.0,0.00329747]
[1645162560870,0.0049486,2898.5,2898.0,0.00329747]
[1645162561071,0.0049486,2898.5,2898.2,1.12852629]
[1645162561267,0.0049486,2898.5,2898.3,1.47040712]
[1645162568266,0.0049486,2898.7,2898.3,1.47040712]
[1645162568664,0.00811228,2898.7,2898.3,1.47040712]
[1645162569463,0.0049486,2898.7,2898.3,1.47040712]
[1645162572425,0.00811233,2898.7,2898.3,1.46917547]
[1645162573017,0.0049486,2898.7,2898.3,1.46917547]
[1645162573218,0.00811233,2898.7,2898.3,1.46917547]
[1645162574219,0.0049486,2898.7,2898.3,1.46917547]
[1645162574434,0.00811233,2898.7,2898.3,1.46917547]
[1645162575321,0.0049486,2898.7,2898.3,1.46917547]
[1645162575763,0.00811233,2898.7,2898.3,1.46917547]
[1645162576564,0.0049486,2898.7,2898.3,1.46917547]
[1645162576965,0.00811233,2898.7,2898.3,1.46917547]
[1645162577871,0.0049486,2898.7,2898.3,4.96917547]
[1645162578074,0.00811233,2898.7,2898.3,1.46917547]
[1645162578274,0.00811233,2898.7,2898.2,1.85412629]
[1645162578671,0.00316373,2898.7,2898.2,1.85412629]
[1645162578871,0.00316373,2898.7,2898.3,3.5]
[1645162579076,0.0129546,2898.8,2898.2,1.85412629]
[1645162579273,0.00316371,2898.7,2898.3,3.5]
[1645162580235,0.0129546,2898.8,2898.3,3.5]
[1645162580428,0.00316373,2898.7,2898.3,3.5]
[1645162580629,0.0129546,2898.8,2898.7,0.00564406]
[1645162581629,0.0129546,2898.8,2898.7,0.89036486]
[1645162587924,0.0129546,2898.8,2898.7,1.74136486]
[1645162589420,0.12456182,2900.1,2898.8,5.5]
[1645162589627,6.7131888,2901.6,2899.2,5.0]
[1645162589628,1.31783119,2900.8,2899.2,5.0]
[1645162589821,0.0032416,2900.7,2899.8,0.01206674]
[1645162590021,0.138056,2900.4,2899.8,1.00686674]
[1645162590221,0.0032416,2900.7,2899.8,1.00686674]
[1645162590427,1.04182426,2900.5,2899.8,2.1250313]
[1645162591069,1.04182426,2900.5,2899.8,0.9948]
[1645162591270,1.34182426,2900.5,2899.4,3.5]
[1645162591675,1.34182426,2900.5,2899.5,1.46964556]
[1645162591676,21.89182426,2900.5,2899.5,1.46964556]
[1645162591887,20.25,2900.3,2899.3,1.2199]
[1645162592075,20.25,2900.3,2899.4,5.84121057]
[1645162592076,0.96840852,2900.0,2899.4,5.84121057]
[1645162592273,0.96840852,2900.0,2899.5,1.46975921]
[1645162592274,1.26840852,2900.0,2899.5,1.46975921]
[1645162592493,1.26840852,2900.0,2899.4,0.87145136]
[1645162592674,0.3,2900.0,2899.5,1.46967986]
[1645162592873,0.3,2900.2,2899.5,1.46967986]
[1645162593873,0.00318797,2900.0,2899.5,1.46967986]
[1645162594276,0.00318797,2900.0,2899.5,4.96967986]
[1645162594528,0.00318797,2900.0,2899.6,1.46967986]
[1645162594734,0.3,2900.2,2899.6,1.46967986]
[1645162594930,0.00318803,2899.9,2899.6,1.46967986]
[1645162595934,0.4818248,2900.3,2899.6,1.46967986]
[1645162596133,0.00318803,2899.9,2899.6,1.46967986]
[1645162597138,0.4818248,2900.3,2899.4,0.87145136]
[1645162597338,0.4818248,2900.3,2899.9,0.90176286]
[1645162598570,0.0064832,2900.3,2899.9,0.90176286]
[1645162598770,0.00318783,2900.2,2899.9,0.90176286]
[1645162599572,0.0064832,2900.3,2899.9,0.90176286]
[1645162599775,0.00318786,2900.2,2899.9,0.90176286]
[1645162601877,0.0064832,2900.3,2899.9,0.90176286]
[1645162602128,0.00318786,2900.2,2899.9,0.90176286]
[1645162602725,0.00318786,2900.2,2899.4,0.00318878]
[1645162602925,0.00318786,2900.2,2899.4,1.47280509]
[1645162603226,0.0064832,2900.3,2899.4,1.46961631]
[1645162603429,0.003188,2899.9,2899.4,1.47280496]
[1645162603625,0.003188,2899.9,2899.5,1.05931785]
[1645162604228,0.0064832,2900.3,2899.5,1.05931785]
[1645162604627,0.00318806,2899.8,2899.6,1.46958571]
[1645162604827,0.0064832,2900.3,2899.8,0.00592017]
[1645162605029,0.0064832,2900.3,2899.9,1.46941919]
[1645162605229,0.0064832,2900.3,2899.9,1.64181919]
[1645162605427,0.0064832,2900.3,2900.0,1.46941919]
[1645162605876,0.0064832,2900.3,2900.1,1.87702619]
[1645162606079,0.0064832,2900.3,2900.2,1.46941919]
[1645162606480,0.0064832,2900.3,2900.1,1.01498619]
[1645162606677,0.0064832,2900.3,2900.2,1.46929281]
[1645162607682,0.0064832,2900.3,2900.1,1.01498619]
[1645162609525,0.00967097,2900.3,2900.1,1.01498619]
[1645162610323,0.0064832,2900.3,2900.1,1.01498619]
[1645162611726,0.0079794,2900.3,2900.1,1.01498619]
[1645162612729,0.0064832,2900.3,2900.1,1.01498619]
[1645162612929,0.0079794,2900.3,2900.1,1.01498619]
[1645162613979,0.0129664,2900.3,2900.1,1.01498619]
[1645162614182,0.01615652,2900.3,2900.1,1.01498619]
[1645162614381,0.01615652,2900.3,2899.8,1.22062017]
[1645162615181,0.0129664,2900.3,2899.8,1.22062017]
[1645162615381,0.00319021,2900.2,2900.0,0.90896064]
[1645162616389,0.0129664,2900.3,2900.0,0.90896064]
[1645162616582,0.00319018,2900.2,2900.0,0.90896064]
[1645162617226,0.00319018,2900.2,2899.8,1.22062017]
[1645162617627,0.0129664,2900.3,2899.8,1.22062017]
[1645162617828,0.00319024,2900.1,2899.8,1.22062017]
[1645162618726,0.0129664,2900.3,2899.8,1.22062017]
[1645162618953,0.00319026,2900.1,2900.0,0.83668284]
[1645162620030,0.0129664,2900.3,2900.0,0.83668284]
[1645162620231,0.00319021,2900.2,2900.0,0.83668284]
[1645162621076,0.0129664,2900.3,2900.0,0.83668284]
[1645162621480,0.00319018,2900.2,2900.0,0.83668284]
[1645162622278,0.0129664,2900.3,2900.0,0.83668284]
[1645162622679,0.00319018,2900.2,2900.0,0.83668284]
[1645162623478,0.0129664,2900.3,2900.0,0.83668284]
[1645162623684,0.00319018,2900.2,2900.0,0.83668284]
[1645162624720,0.0129664,2900.3,2900.0,0.83668284]
[1645162624922,0.00319018,2900.2,2900.0,0.83668284]
[1645162625324,0.00319018,2900.2,2899.8,1.22062017]
[1645162625526,0.00319018,2900.2,2899.9,1.46943627]
[1645162625925,0.0129664,2900.3,2899.9,1.46943627]
[1645162626129,0.0014974,2900.2,2899.9,1.46943627]
[1645162626325,0.0014974,2900.2,2899.9,1.06681189]
[1645162626524,0.0014974,2900.2,2899.8,0.00592017]
[1645162627130,0.00642126,2900.2,2899.8,0.00592017]
[1645162627331,0.00492386,2900.2,2899.8,0.00592017]
[1645162627533,0.94969669,2900.1,2899.8,0.00592017]
[1645162627733,0.00492386,2900.0,2899.8,0.00592017]
[1645162628590,0.499,2899.9,2899.8,0.00592017]
[1645162628980,3.999,2899.9,2899.8,0.00592017]
[1645162629385,5.299,2899.9,2899.8,0.00592017]
[1645162633137,6.0788,2899.9,2899.8,0.00592017]
[1645162633335,6.2512,2899.9,2899.8,0.00592017]
[1645162635136,5.9968,2899.9,2899.8,0.00592017]
[1645162635776,5.9968,2899.9,2899.8,0.00465591]
[1645162637582,2.2714,2899.9,2899.8,0.00465591]
[1645162637985,1.2714,2899.9,2899.8,0.00465591]
[1645162638206,0.799,2899.9,2899.8,0.00465591]
[1645162638382,0.499,2899.9,2899.8,0.00465591]
[1645162640426,0.799,2899.9,2899.8,0.00465591]
[1645162640628,1.099,2899.9,2899.8,0.00465591]
[1645162644601,0.95087571,2899.6,2898.9,3.5]
[1645162644772,0.95087571,2899.6,2898.8,1.2241]
[1645162644773,1.25087571,2899.6,2899.0,1.46948384]
[1645162644975,1.25087571,2899.6,2898.9,1.46948384]
[1645162645372,0.3,2899.6,2898.9,4.96948384]
[1645162645574,0.00492386,2899.8,2899.0,1.46948384]
[1645162646471,0.00492386,2899.8,2899.2,1.08269116]
[1645162646674,0.0014972,2899.7,2899.3,1.46948384]
[1645162647723,0.00492386,2899.8,2899.3,1.46948384]
[1645162647924,0.00149725,2899.7,2899.3,1.46948384]
[1645162648527,0.00149725,2899.7,2898.9,3.5]
[1645162648733,0.00492386,2899.8,2899.0,1.46946381]
[1645162649128,0.00319293,2899.7,2899.3,0.00319346]
[1645162649829,0.00319293,2899.7,2899.4,0.91501912]
[1645162650033,0.00492386,2899.8,2899.5,1.46946381]
[1645162650228,0.00319293,2899.7,2899.5,1.46946381]
[1645162650875,1.23743195,2899.9,2899.5,1.46946381]
[1645162651076,0.25811679,2899.9,2899.5,1.46946381]
[1645162651276,0.0022994,2899.6,2899.5,1.46946381]
[1645162651477,1.0,2900.2,2899.6,0.00423044]
[1645162651677,1.3294664,2900.3,2899.7,1.46946381]
[1645162651879,1.1570664,2900.3,2899.7,1.46946381]
[1645162652081,2.34782347,2900.3,2899.7,1.46946381]
[1645162653182,0.3,2900.2,2899.7,1.46946381]
[1645162655623,0.3,2900.2,2899.8,3.5]
[1645162655824,0.0129664,2900.3,2899.8,3.5]
[1645162656133,0.0129664,2900.3,2899.9,1.46946381]
[1645162656330,0.0129664,2900.3,2900.0,3.5]
[1645162656534,0.0129664,2900.3,2900.1,1.46946381]
[1645162656929,0.0129664,2900.3,2899.7,3.5]
[1645162656930,0.0129664,2900.3,2900.2,1.46946381]
[1645162657131,0.0129664,2900.3,2899.8,1.46946381]
[1645162657332,0.0129664,2900.3,2899.9,1.46917116]
[1645162657530,0.0129664,2900.3,2900.0,1.46917116]
[1645162657734,0.0129664,2900.3,2899.6,1.13513044]
[1645162658130,0.0129664,2900.3,2899.7,1.46923547]
[1645162661687,0.87912338,2899.9,2899.7,1.46923547]
[1645162661887,0.0129664,2900.3,2899.7,1.46923547]
[1645162662130,0.3,2899.9,2899.7,1.46923547]
[1645162662330,0.0129664,2900.3,2899.7,1.46923547]
[1645162663232,0.97855229,2900.0,2899.7,1.46923547]
[1645162663674,1.27855229,2900.0,2899.7,1.46923547]
[1645162664230,0.0129664,2900.3,2899.7,1.46923547]
[1645162665336,1.27036457,2900.1,2899.7,1.46923547]
[1645162665809,0.97036457,2900.1,2899.7,1.46923547]
[1645162665976,0.00489924,2900.0,2899.7,1.46923547]
[1645162666979,1.27526381,2900.1,2899.7,1.46923547]
[1645162667183,0.00319283,2900.0,2899.7,1.46923547]
[1645162668191,1.27526381,2900.1,2899.7,1.46923547]
[1645162668404,0.00319283,2900.0,2899.7,1.46923547]
[1645162669190,1.27526381,2900.1,2899.7,1.46923547]
[1645162669392,0.00319283,2900.0,2899.7,1.46923547]
[1645162670427,1.27526381,2900.1,2899.7,1.46923547]
[1645162670728,0.00319283,2900.0,2899.7,1.46923547]
[1645162671632,1.27526381,2900.1,2899.7,1.46923547]
[1645162671834,0.00319283,2900.0,2899.7,1.46923547]
[1645162672835,1.27036457,2900.1,2899.6,0.00423044]
[1645162673034,0.00319283,2900.0,2899.7,1.46928156]
[1645162674082,1.27526381,2900.1,2899.7,1.46928156]
[1645162674286,0.00319283,2900.0,2899.7,1.46928156]
[1645162675286,1.27526381,2900.1,2899.7,1.46928156]
[1645162675486,0.00319283,2900.0,2899.7,1.46928156]
[1645162676487,1.27526381,2900.1,2899.7,1.46928156]
[1645162676705,0.00319283,2900.0,2899.7,1.46928156]
[1645162677747,1.27526381,2900.1,2899.7,1.46928156]
[1645162677931,0.00319283,2900.0,2899.7,1.46928156]
[1645162678948,0.97036457,2900.1,2899.7,1.46928156]
[1645162679135,0.00319283,2900.0,2899.7,1.46928156]
[1645162680037,1.27036457,2900.1,2899.7,1.46928156]
[1645162680235,0.00319283,2900.0,2899.7,1.46928156]
[1645162681279,1.27036457,2900.1,2899.7,1.46928156]
[1645162681779,0.00319283,2900.0,2899.7,1.46928156]
[1645162682381,1.27036457,2900.1,2899.7,1.46928156]
[1645162682881,0.00319283,2900.0,2899.7,1.46928156]
[1645162683682,1.27036457,2900.1,2899.7,1.46928156]
[1645162683882,0.00319283,2900.0,2899.7,1.46928156]
[1645162684924,1.27036457,2900.1,2899.7,1.46928156]
[1645162685127,0.00319283,2900.0,2899.7,1.46928156]
[1645162685925,0.00319283,2900.0,2899.9,0.01167463]
[1645162686125,0.86738924,2900.2,2899.9,1.48095619]
[1645162686367,0.86738924,2900.2,2900.0,1.46928156]
[1645162686528,0.86738924,2900.2,2900.0,1.46827871]
[1645162686738,0.30489924,2900.2,2900.0,1.46827871]
[1645162686929,0.00489924,2900.2,2900.0,1.46827871]
[1645162687127,0.0129664,2900.3,2900.0,1.46827871]
[1645162687528,0.00310203,2900.2,2900.0,1.46827871]
[1645162688381,0.0129664,2900.3,2900.0,1.46827871]
[1645162688784,0.00310203,2900.2,2900.0,1.46827871]
[1645162689586,0.0129664,2900.3,2900.0,1.46827871]
[1645162689985,0.00310203,2900.2,2900.0,1.46827871]
[1645162690685,0.00310203,2900.2,2900.1,0.02285979]
[1645162690886,0.0129664,2900.3,2900.1,0.02285979]
[1645162691083,0.00319268,2900.2,2900.1,0.02285979]
[1645162692132,0.0129664,2900.3,2900.1,0.02285979]
[1645162692334,0.01615905,2900.3,2900.1,0.02285979]
[1645162693134,0.0129664,2900.3,2900.1,0.02285979]
[1645162693534,0.01615902,2900.3,2900.1,0.02285979]
[1645162694542,0.0129664,2900.3,2900.1,0.02285979]
[1645162694736,0.01615902,2900.3,2900.1,0.02285979]
[1645162695775,0.0129664,2900.3,2900.1,0.02285979]
[1645162695975,0.01615902,2900.3,2900.1,0.01164404]
[1645162696378,0.01615902,2900.3,2900.2,1.06788139]
[1645162696577,0.00489924,2900.6,2900.3,0.02990701]
[1645162696776,0.01276857,2900.8,2900.3,0.02990701]
[1645162696777,0.00489924,2900.7,2900.3,0.02990701]
[1645162696979,0.3,2900.9,2900.3,0.02990701]
[1645162696980,0.00489924,2900.9,2900.3,0.02990701]
[1645162697981,0.00489924,2900.9,2900.3,1.11237853]
[1645162698382,0.00130276,2900.7,2900.3,1.11237853]
[1645162698685,0.00130276,2900.7,2900.3,0.02990701]
[1645162698884,0.006202,2900.7,2900.3,0.02990701]
[1645162699288,0.00489924,2900.7,2900.3,0.02990701]
[1645162699536,0.00130276,2900.6,2900.3,0.02990701]
[1645162700531,0.00489924,2900.7,2900.3,0.02990701]
[1645162700736,0.00300033,2900.6,2900.5,0.01158288]
[1645162701635,0.86721924,2900.8,2900.5,0.01158288]
[1645162702036,0.00305692,2900.7,2900.5,0.01158288]
[1645162702838,0.86721924,2900.8,2900.5,0.01158288]
[1645162703275,0.00305689,2900.7,2900.5,0.01158288]
[1645162704174,0.86721924,2900.8,2900.5,0.01158288]
[1645162704376,0.00305689,2900.7,2900.5,0.01158288]
[1645162705378,0.86721924,2900.8,2900.5,0.01158288]
[1645162705578,0.00299391,2900.7,2900.5,0.01158288]
[1645162706179,0.00299391,2900.7,2900.6,0.01210402]
[1645162706579,0.86721924,2900.8,2900.6,0.01210402]
[1645162706795,0.87021312,2900.8,2900.6,0.01210402]
[1645162707229,1.17021312,2900.8,2900.7,1.46923921]
[1645162707631,1.16721924,2900.8,2900.7,1.46923921]
[1645162709433,1.16721924,2900.8,2900.6,0.01210402]
[1645162710434,1.17021943,2900.8,2900.6,0.01210402]
[1645162710881,1.17021943,2900.8,2900.7,0.01251088]
[1645162711282,1.16721924,2900.8,2900.7,0.01251088]
[1645162711481,0.86721924,2900.8,2900.7,0.01251088]
[1645162711879,1.16721924,2900.8,2900.7,0.01251088]
[1645162712883,0.30489924,2900.8,2900.7,0.01251088]
[1645162713286,0.00489924,2900.8,2900.7,1.48172206]
[1645162714186,0.00489924,2900.8,2900.7,0.01251088]
[1645162715832,0.00489924,2900.8,2900.7,1.48170336]
[1645162716033,0.00489924,2900.8,2900.7,1.46919248]
[1645162716437,0.00489924,2900.8,2900.6,0.0246149]
[1645162717240,0.00489924,2900.8,2900.7,1.46918186]
[1645162717438,0.00489924,2901.3,2900.7,2.39008573]
[1645162717742,0.00299962,2900.8,2900.7,0.92090387]
[1645162718138,0.00299962,2900.8,2900.7,2.39007457]
[1645162718578,0.00489924,2901.3,2900.7,2.39007457]
[1645162718780,0.00299959,2900.9,2900.6,0.0246149]
[1645162719182,0.00299959,2900.9,2900.7,1.46916573]